bitfinex/quotes_ETHUSD_20250616
["timestamp","ask_amount","ask_price","bid_price","bid_amount"]
[1750059558915,0.1896,2627.8,2627.5,3.87197076]
[1750059558916,0.1896,2627.8,2627.7,3.80560946]
[1750059559114,4.97396312,2627.7,2627.6,3.8057543]
[1750059560082,0.1896,2627.8,2627.7,3.80560946]
[1750059562420,0.55,2627.7,2627.4,3.99559467]
[1750059562623,4.97396312,2627.5,2627.2,3.80631625]
[1750059562825,4.97396312,2627.5,2627.3,3.80618886]
[1750059564615,4.97396312,2627.5,2627.1,0.02]
[1750059564790,4.97396312,2627.3,2627.1,3.82637974]
[1750059565401,5.52396312,2627.3,2627.2,3.80633373]
[1750059565897,0.55,2627.3,2627.2,3.80633373]
[1750059567101,0.1896,2627.4,2627.3,3.80618886]
[1750059568504,0.7396,2627.4,2627.3,3.80618886]
[1750059571417,0.7396,2627.4,2627.1,3.82645876]
[1750059571731,0.7396,2627.4,2627.3,3.80618886]
[1750059572710,0.7396,2627.4,2627.2,3.80621522]
[1750059572711,2.09275631,2627.4,2627.2,3.80621522]
[1750059573134,1.5214,2627.4,2627.2,3.80621522]
[1750059573434,5.52396312,2627.3,2627.2,3.80633373]
[1750059574195,0.55,2627.3,2627.2,3.80633373]
[1750059585151,0.55,2627.5,2627.1,0.05806362]
[1750059585356,0.55,2627.5,2627.3,3.80618886]
[1750059585357,0.1896,2627.4,2627.3,3.80618886]
[1750059585655,0.91151023,2627.7,2627.6,3.8057543]
[1750059585849,0.1896,2627.8,2627.7,3.80560946]
[1750059587950,0.91151023,2627.9,2627.8,3.80546464]
[1750059589435,5.88547335,2627.9,2627.7,3.80556168]
[1750059590053,0.55,2627.8,2627.5,3.80586569]
[1750059590252,5.16356312,2627.6,2627.5,3.80586569]
[1750059590518,5.97546312,2627.6,2627.1,0.2096]
[1750059590834,16.33606312,2627.2,2627.1,0.02]
[1750059591029,18.04362943,2627.2,2627.1,0.02]
[1750059591235,18.95655151,2627.2,2627.1,0.02]
[1750059594167,18.04362943,2627.2,2627.1,0.02]
[1750059594333,16.43675193,2627.2,2627.1,0.02]
[1750059594666,11.46278881,2627.2,2627.1,0.02]
[1750059597231,0.7396,2627.1,2626.9,3.99253424]
[1750059597438,0.7396,2627.1,2627.0,3.80662352]
[1750059597864,0.7396,2627.1,2626.9,3.99254151]
[1750059598551,0.7396,2627.1,2626.9,3.9925344]
[1750059601181,1.09566778,2627.1,2626.9,3.9925344]
[1750059601382,0.7396,2627.1,2626.9,3.9925344]
[1750059602980,0.1896,2627.1,2627.0,3.80662352]
[1750059605079,0.54688017,2627.1,2627.0,3.80662352]
[1750059605282,0.1896,2627.1,2627.0,3.80662352]
[1750059606042,7.003,2627.6,2627.3,3.80609523]
[1750059606241,0.1896,2627.4,2627.3,3.80609523]
[1750059606452,0.54684139,2627.4,2627.3,3.80609523]
[1750059606639,0.54684059,2627.4,2627.3,3.80609523]
[1750059606869,0.1896,2627.4,2627.3,3.80609523]
[1750059607188,0.54683937,2627.4,2627.3,3.80609523]
[1750059607371,0.1896,2627.4,2627.3,3.80609523]
[1750059607569,0.54683751,2627.4,2627.3,3.80609523]
[1750059607773,0.54683767,2627.4,2627.3,3.80609523]
[1750059607975,0.1896,2627.4,2627.3,3.80609523]
[1750059608286,0.1896,2627.4,2627.3,3.80618886]
[1750059609548,5.16356312,2627.5,2627.4,3.80604399]
[1750059609747,5.51996124,2627.5,2627.4,3.80604399]
[1750059609963,5.16356312,2627.5,2627.4,3.80604399]
[1750059610684,0.1896,2627.5,2627.4,3.80604399]
[1750059611047,5.77436312,2627.7,2627.4,3.80604399]
[1750059611246,5.96396312,2627.7,2627.4,3.80604399]
[1750059611489,6.32035651,2627.7,2627.4,3.80604399]
[1750059611686,5.96396312,2627.7,2627.4,3.80604399]
[1750059612197,15.51995479,2627.7,2627.6,3.8057543]
[1750059612352,15.16356312,2627.7,2627.6,3.8057543]
[1750059612688,16.07542502,2627.7,2627.6,3.8057543]
[1750059612902,16.07542502,2627.7,2627.5,3.80582313]
[1750059613191,16.07542502,2627.7,2627.6,3.8057543]
[1750059613396,0.9118619,2627.7,2627.6,3.8718543]
[1750059613549,0.21432165,2628.0,2627.6,0.0661]
[1750059613750,0.21432165,2628.0,2627.9,3.80531983]
[1750059615848,0.21432165,2628.0,2627.9,3.90946932]
[1750059616164,0.21432165,2628.0,2627.9,3.87141983]
[1750059616363,5.18828477,2628.0,2627.9,3.80531983]
[1750059617676,0.21432165,2628.0,2627.9,3.80531983]
[1750059618647,0.21432165,2628.0,2627.9,3.87141983]
[1750059618753,0.21432165,2628.0,2627.9,3.90947084]
[1750059619159,0.21432165,2628.0,2627.9,3.87141983]
[1750059619582,0.21432165,2628.0,2627.9,15.32942275]
[1750059619897,0.21432165,2628.0,2627.9,15.29138295]
[1750059623403,0.21432165,2628.0,2627.9,15.48098295]
[1750059625161,0.21432165,2628.0,2627.9,25.48098295]
[1750059625800,0.21432165,2628.0,2627.9,22.24801983]
[1750059626381,0.21432165,2628.0,2627.9,12.24801983]
[1750059627423,0.21432165,2628.0,2627.9,15.7543119]
[1750059629727,0.21432165,2628.0,2627.9,25.7543119]
[1750059631599,0.21432165,2628.0,2627.9,25.7513119]
[1750059631803,0.21432165,2628.0,2627.9,17.5673119]
[1750059632003,0.21432165,2628.0,2627.9,25.7503119]
[1750059638743,0.21432165,2628.0,2627.9,25.7473119]
[1750059639104,0.21432165,2628.0,2627.9,17.5673119]
[1750059639300,0.21432165,2628.0,2627.9,7.5012119]
[1750059639532,0.21432165,2628.0,2627.9,15.6812119]
[1750059640046,0.21432165,2628.0,2627.9,15.7473119]
[1750059641035,0.21432165,2628.0,2627.9,7.5012119]
[1750059641255,0.21432165,2628.0,2627.9,15.6802119]
[1750059643413,0.21432165,2628.0,2627.9,15.6792119]
[1750059645215,0.21432165,2628.0,2627.9,7.5012119]
[1750059645420,0.21432165,2628.0,2627.9,13.9352119]
[1750059650561,0.21432165,2628.0,2627.9,7.5012119]
[1750059650724,0.21432165,2628.0,2627.9,13.9332119]
[1750059651273,0.21432165,2628.0,2627.9,7.5012119]
[1750059651477,1.03832165,2628.0,2627.9,7.3116119]
[1750059652126,0.21432165,2628.0,2627.9,7.3116119]
[1750059652327,0.21432165,2628.0,2627.9,13.7426119]
[1750059654653,0.21432165,2628.0,2627.9,9.93629207]
[1750059654654,1.50861013,2628.0,2627.9,9.93629207]
[1750059655429,1.50861013,2628.0,2627.9,13.7416119]
[1750059655830,1.50861013,2628.0,2627.9,9.93629207]
[1750059656231,1.50861013,2628.0,2627.9,13.7416119]
[1750059657078,1.50861013,2628.0,2627.9,9.93629207]
[1750059657232,1.50861013,2628.0,2627.9,13.7416119]
[1750059658169,1.50861013,2628.0,2627.9,13.7406119]
[1750059658664,1.50861013,2628.0,2627.9,3.50629207]
[1750059660252,1.50861013,2628.0,2627.9,7.3116119]
[1750059660574,0.97082165,2628.0,2627.9,7.3116119]
[1750059665996,0.97082165,2628.0,2627.9,3.50629207]
[1750059666138,1.52082165,2628.0,2627.9,3.50629207]
[1750059666437,0.1896,2627.9,2627.8,6.427]
[1750059666637,0.8211,2627.8,2627.4,0.1896]
[1750059666833,5.79506312,2627.5,2627.4,3.80604399]
[1750059667037,5.79506312,2627.5,2627.3,3.80610581]
[1750059668195,5.79506312,2627.5,2627.2,3.80631679]
[1750059668338,4.97396312,2627.3,2627.2,3.80631679]
[1750059668794,4.97396312,2627.3,2627.0,6.426]
[1750059669097,4.97396312,2627.3,2626.9,0.1858417]
[1750059669098,4.97396312,2627.1,2626.9,0.1858417]
[1750059669296,5.98466312,2627.1,2626.9,3.99248777]
[1750059670545,5.98466312,2627.1,2627.0,3.80662352]
[1750059671055,5.98466312,2627.1,2626.9,3.99255419]
[1750059671646,6.64297606,2627.1,2626.9,3.99255419]
[1750059671875,4.97396312,2627.0,2626.9,3.99255419]
[1750059672464,4.97396312,2627.0,2626.9,0.1858417]
[1750059673070,4.97396312,2627.0,2626.9,3.99261013]
[1750059674284,4.97396312,2627.0,2626.9,0.1858417]
[1750059674446,5.63826073,2627.0,2626.9,3.99261013]
[1750059674998,5.63826073,2627.0,2626.9,0.1858417]
[1750059675781,6.37786073,2627.0,2626.9,0.1858417]
[1750059676181,7.18026073,2627.0,2626.9,0.1858417]
[1750059682192,7.53759545,2627.0,2626.9,0.1858417]
[1750059682392,7.18026073,2627.0,2626.9,0.1858417]
[1750059682599,7.53759543,2627.0,2626.9,0.1858417]
[1750059685588,2.56363231,2627.0,2626.9,0.1858417]
[1750059685774,7.53759543,2627.0,2626.9,0.1858417]
[1750059689177,6.18519543,2627.0,2626.9,0.1858417]
[1750059689377,6.39959982,2627.0,2626.9,0.1858417]
[1750059689600,6.18519543,2627.0,2626.9,0.1858417]
[1750059689915,16.73519543,2627.0,2626.9,0.1858417]
[1750059690077,18.66780506,2627.0,2626.9,0.1858417]
[1750059691406,19.02517309,2627.0,2626.9,0.1858417]
[1750059691615,18.66780506,2627.0,2626.9,0.1858417]
[1750059692317,19.02517384,2627.0,2626.9,0.1858417]
[1750059692542,18.66780506,2627.0,2626.9,0.1858417]
[1750059693081,25.08880506,2627.0,2626.9,0.1858417]
[1750059693621,28.89542858,2627.0,2626.9,0.1858417]
[1750059695130,0.55,2626.7,2626.2,3.80770004]
[1750059695303,4.97396312,2626.4,2626.1,3.82786078]
[1750059695507,4.97396312,2626.2,2626.1,0.02]
[1750059696231,4.97396312,2626.2,2626.1,3.8279281]
[1750059696646,14.97396312,2626.2,2626.1,0.02]
[1750059696847,16.58132026,2626.2,2626.1,0.02]
[1750059697031,17.49132852,2626.2,2626.1,0.02]
[1750059697200,18.81122852,2626.2,2626.1,0.02]
[1750059697400,13.0673654,2626.2,2626.1,0.02]
[1750059697608,17.13132026,2626.2,2626.1,0.02]
[1750059697815,18.04353126,2626.2,2626.1,0.02]
[1750059698900,12.70916814,2626.2,2626.1,3.8279281]
[1750059699097,15.16356312,2626.2,2626.1,0.02]
[1750059699711,15.16356312,2626.2,2626.1,3.8279281]
[1750059706843,7.1739,2626.7,2626.3,3.80752733]
[1750059707045,11.39096312,2626.8,2626.1,3.93204714]
[1750059707245,0.1896,2626.6,2626.5,3.80726234]
[1750059707752,0.1896,2626.8,2626.7,3.80694622]
[1750059708210,5.16356312,2626.8,2626.7,3.80694622]
[1750059709012,5.16356312,2626.8,2626.6,3.80714443]
[1750059710415,5.16356312,2626.8,2626.6,3.80718759]
[1750059713255,1.358,2626.7,2626.4,3.80738027]
[1750059713460,4.97396312,2626.5,2626.4,3.80738027]
[1750059714224,4.97396312,2626.5,2626.2,3.8077831]
[1750059714459,4.97396312,2626.3,2626.2,3.8077831]
[1750059714969,5.16356312,2626.6,2626.4,3.80738893]
[1750059715154,6.2234202,2626.6,2626.4,3.80738893]
[1750059718357,6.2234202,2626.6,2626.3,3.80757012]
[1750059718561,4.97396312,2626.5,2626.4,3.80748178]
[1750059724773,0.1896,2626.6,2626.5,3.80734818]
[1750059728682,0.1896,2626.6,2626.5,3.84541928]
[1750059728845,0.1896,2626.8,2626.7,3.80703736]
[1750059730942,0.57173607,2627.0,2626.9,3.80676843]
[1750059732808,5.54569919,2627.0,2626.9,3.80676843]
[1750059733594,5.54569919,2627.0,2626.8,3.8068925]
[1750059733595,5.54569919,2627.0,2626.8,3.80687998]
[1750059733892,6.50299919,2627.0,2626.6,3.80720322]
[1750059734058,6.50299919,2627.0,2626.8,3.80679502]
[1750059734256,0.55,2626.9,2626.7,3.80699092]
[1750059734491,5.16356312,2626.8,2626.7,3.80699092]
[1750059734697,0.1896,2626.8,2626.7,3.80699092]
[1750059736970,0.57173607,2627.0,2626.9,3.80676843]
[1750059737300,1.49028235,2627.0,2626.9,3.80676843]
[1750059738200,1.49028235,2627.0,2626.8,3.8068359]
[1750059738506,4.97396312,2626.9,2626.8,3.8068359]
[1750059740368,1.12173607,2627.0,2626.9,3.80676843]
[1750059741174,0.57173607,2627.0,2626.9,3.80676843]
[1750059742072,0.57173607,2627.0,2626.9,3.99636843]
[1750059742993,0.76133607,2627.0,2626.9,3.80676843]
[1750059743195,1.56313235,2627.0,2626.9,3.80676843]
[1750059743395,0.76133607,2627.0,2626.9,3.80676843]
[1750059744066,0.57173607,2627.0,2626.9,3.80676843]
[1750059746189,0.57173607,2627.0,2626.9,3.844832]
[1750059747391,0.57173607,2627.0,2626.9,3.80676843]
[1750059759331,0.57173607,2627.0,2626.9,3.8448323]
[1750059760597,0.57173607,2627.0,2626.9,4.0344323]
[1750059765606,0.57173607,2627.0,2626.9,10.38936843]
[1750059765804,0.57173607,2627.0,2626.9,3.99636843]
[1750059766528,5.54569919,2627.0,2626.9,3.80676843]
[1750059766718,0.57173607,2627.0,2626.9,3.80676843]
[1750059780563,0.57173607,2627.0,2626.9,3.8448326]
[1750059780862,0.57173607,2627.0,2626.9,4.03443084]
[1750059781768,0.57173607,2627.0,2626.9,4.10053084]
[1750059782769,0.57173607,2627.0,2626.9,10.44946843]
[1750059783269,0.57173607,2627.0,2626.9,15.42343155]
[1750059783468,0.57173607,2627.0,2626.9,4.06246843]
[1750059783629,0.57173607,2627.0,2626.9,5.70836843]
[1750059784928,0.57173607,2627.0,2626.9,3.99636843]
[1750059785131,0.57173607,2627.0,2626.9,10.38136843]
[1750059789360,0.57173607,2627.0,2626.9,10.61136843]
[1750059789566,0.57173607,2627.0,2626.9,10.67746843]
[1750059791781,0.57173607,2627.0,2626.9,20.67746843]
[1750059792294,0.57173607,2627.0,2626.9,4.29246843]
[1750059792442,0.57173607,2627.0,2626.9,12.38746843]
[1750059797242,0.57173607,2627.0,2626.9,12.38546843]
[1750059798244,0.57173607,2627.0,2626.9,15.89140691]
[1750059802012,0.57173607,2627.0,2626.9,25.89140691]
[1750059803921,0.57173607,2627.0,2626.9,25.88940691]
[1750059804062,0.57173607,2627.0,2626.9,25.88840691]
[1750059808981,0.819,2628.3,2628.0,3.80517503]
[1750059809304,0.819,2628.3,2628.2,3.80488547]
[1750059810108,0.819,2628.3,2628.2,3.99448547]
[1750059810681,0.819,2628.3,2628.2,3.80488547]
[1750059810877,0.819,2628.3,2628.2,10.18088547]
[1750059814216,0.57,2628.9,2628.7,3.80408798]
[1750059814778,0.7785,2628.8,2628.7,3.80408798]
[1750059815003,0.7785,2628.8,2628.6,3.80423443]
[1750059815208,0.8218,2628.6,2628.5,3.80435672]
[1750059817073,0.8218,2628.6,2628.4,3.80453971]
[1750059817270,0.8218,2628.6,2628.5,3.8044512]
[1750059817511,0.8045,2628.5,2628.3,3.80469515]
[1750059817827,0.8045,2628.5,2628.4,3.80447779]
[1750059818490,1.0143,2628.7,2628.6,3.80430647]
[1750059821506,0.8247,2628.7,2628.6,3.80430647]
[1750059822444,0.02,2628.9,2628.8,3.80401704]
[1750059822640,0.02,2628.9,2628.8,10.17401704]
[1750059824952,0.02,2628.9,2628.8,10.17301704]
[1750059827620,0.02,2628.9,2628.8,10.17201704]
[1750059831463,0.02,2628.9,2628.8,3.80401704]
[1750059831668,0.02,2628.9,2628.8,10.17101704]
[1750059836845,0.02,2628.9,2628.8,10.42671704]
[1750059837880,0.02,2628.9,2628.8,20.42671704]
[1750059838058,0.8117,2629.3,2629.2,3.8034383]
[1750059838379,0.8117,2629.3,2629.2,16.90550142]
[1750059841186,0.8117,2629.3,2629.2,26.90550142]
[1750059842850,0.8117,2629.3,2629.2,26.90350142]
[1750059843785,0.02,2629.9,2629.8,3.80257053]
[1750059844102,0.02,2629.9,2629.8,11.86257053]
[1750059845382,0.8016,2629.9,2629.8,3.80257053]
[1750059845677,0.02,2629.9,2629.8,10.16357053]
[1750059847911,0.02,2629.9,2629.8,10.35317053]
[1750059848116,0.02,2629.9,2629.8,10.35217053]
[1750059851726,0.02,2629.9,2629.8,20.41827053]
[1750059852128,0.02,2629.9,2629.8,25.39223365]
[1750059852282,0.02,2630.9,2630.8,3.80112513]
[1750059852606,0.02,2630.9,2630.8,10.16012513]
[1750059854522,0.8302,2630.9,2630.6,3.99091079]
[1750059854727,10.9998,2630.8,2630.7,3.80119787]
[1750059854886,10.9998,2630.8,2630.6,3.80141412]
[1750059855087,10.9998,2630.8,2630.5,3.80147901]
[1750059855313,12.65915794,2630.8,2630.5,3.80147901]
[1750059855902,12.65915794,2630.8,2630.5,3.80155307]
[1750059856112,10.0,2630.6,2630.5,3.80155307]
[1750059857533,2.65915794,2630.8,2630.6,3.80137308]
[1750059857735,10.9998,2630.8,2630.6,3.80137308]
[1750059858342,10.9998,2630.8,2630.7,3.80126962]
[1750059858643,10.9998,2630.8,2630.6,3.80134591]
[1750059859156,10.9998,2630.8,2630.7,3.80126962]
[1750059860137,0.1896,2630.8,2630.7,3.80126962]
[1750059860324,0.02,2630.9,2630.8,3.80112513]
[1750059860535,0.02,2630.9,2630.8,10.15712513]
[1750059862551,0.02,2630.9,2630.8,10.34672513]
[1750059865265,0.8269,2630.9,2630.8,3.99072513]
[1750059865467,2.40698631,2630.9,2630.8,3.80112513]
[1750059866031,0.8269,2630.9,2630.8,3.80112513]
[1750059866227,0.8269,2630.9,2630.3,1.697]
[1750059866453,4.97396312,2630.7,2630.6,3.80141412]
[1750059866654,4.97396312,2630.7,2630.5,3.80151313]
[1750059866854,0.7732,2630.6,2630.5,3.80151313]
[1750059867378,0.7732,2630.6,2630.4,3.80163143]
[1750059867539,4.97396312,2630.5,2630.4,3.80163143]
[1750059869047,0.7732,2630.6,2630.5,3.80155863]
[1750059875245,0.7732,2630.6,2630.5,3.80155863]
[1750059879433,0.759,2630.4,2629.6,6.4181]
[1750059879669,4.97396312,2630.0,2629.9,3.80242594]
[1750059880034,5.76886312,2630.0,2629.4,0.0661]
[1750059880364,5.76886312,2630.0,2629.5,6.352]
[1750059880666,4.97396312,2629.8,2629.6,3.80280791]
[1750059881046,4.74396312,2629.8,2629.6,3.80280791]
[1750059882251,4.74396312,2629.8,2629.5,3.80294732]
[1750059883072,4.74396312,2629.8,2629.3,6.352]
[1750059883269,4.74396312,2629.8,2629.5,3.80300288]
[1750059884370,4.74396312,2629.8,2629.4,3.8030883]
[1750059884678,4.74396312,2629.8,2629.5,3.8029717]
[1750059887174,0.55,2629.9,2629.6,3.80284075]
[1750059887378,0.8328,2629.8,2629.2,10.1543537]
[1750059887675,0.8328,2629.8,2629.7,3.80271513]
[1750059888172,0.8328,2629.8,2629.6,3.8027885]
[1750059888383,0.8328,2629.8,2629.7,3.80271513]
[1750059888545,3.80148028,2630.6,2629.9,3.8023173]
[1750059888546,10.8001,2630.1,2629.9,3.8023173]
[1750059888753,1.3501,2630.1,2630.0,3.80228136]
[1750059888968,0.8076,2630.3,2629.6,6.38902413]
[1750059889296,5.78156312,2630.5,2630.3,3.80178807]
[1750059889576,5.97116312,2630.5,2630.3,3.80178807]
[1750059889760,15.97116312,2630.5,2630.4,3.80170316]
[1750059890168,15.97116312,2630.5,2630.3,3.80177875]
[1750059890363,15.97116312,2630.5,2630.4,3.80170316]
[1750059890563,0.9972,2630.5,2630.4,3.80170316]
[1750059890945,0.1896,2630.5,2630.4,3.80170316]
[1750059891638,0.7826,2630.7,2630.6,3.80141412]
[1750059891977,0.1896,2630.7,2630.6,3.80141412]
[1750059895597,10.0,2630.8,2630.7,3.80126962]
[1750059896371,10.2096,2630.9,2630.8,3.80112513]
[1750059897103,10.2096,2630.9,2630.7,3.80121767]
[1750059897468,10.2096,2630.9,2630.8,3.80112513]
[1750059897669,10.2096,2630.9,2630.4,0.1896]
[1750059898196,10.2096,2630.9,2630.6,3.80127509]
[1750059898364,4.97396312,2630.8,2630.6,3.80127509]
[1750059898570,4.97396312,2630.8,2630.5,3.80149378]
[1750059898765,4.97396312,2630.6,2630.3,3.80184769]
[1750059898986,4.97396312,2630.6,2630.5,3.80155863]
[1750059900302,4.97396312,2630.6,2630.4,3.80165637]
[1750059900605,1.5307,2630.4,2629.6,0.1896]
[1750059900790,4.97396312,2629.9,2629.6,0.1896]
[1750059900991,4.97396312,2630.1,2630.0,3.80226873]
[1750059901205,4.97396312,2630.0,2629.9,3.80242594]
[1750059901408,5.16356312,2630.0,2629.9,3.80242594]
[1750059902209,0.1896,2630.0,2629.9,3.80242594]
[1750059903112,0.7911,2630.4,2630.3,3.80184769]
[1750059903330,0.9462,2630.6,2630.5,3.80155863]
[1750059903671,0.9462,2630.6,2630.4,3.8016167]
[1750059903876,0.9462,2630.6,2630.1,0.1896]
[1750059904202,0.1896,2630.6,2630.5,3.80155863]
[1750059905409,10.7566,2630.8,2630.7,3.80126962]
[1750059905575,0.7566,2630.8,2630.7,3.80126962]
[1750059905775,0.7566,2630.8,2630.6,3.80132961]
[1750059906077,0.1896,2630.7,2630.6,3.80132961]
[1750059908921,0.02,2630.9,2630.8,3.80112513]
[1750059909096,0.02,2630.9,2630.8,3.99072513]
[1750059910128,0.02,2630.9,2630.8,3.57055706]
[1750059911102,0.7957,2630.8,2630.3,0.0661]
[1750059911301,0.7957,2630.8,2630.2,3.80192011]
[1750059911302,7.33890156,2630.6,2630.2,3.80192011]
[1750059911642,8.15530156,2630.3,2629.9,3.80230904]
[1750059911784,0.1896,2630.2,2629.7,0.1896]
[1750059912311,0.8164,2630.5,2630.3,3.80184632]
[1750059912636,0.1896,2630.4,2630.3,3.80184769]
[1750059913082,0.1896,2630.4,2630.2,3.80193257]
[1750059913281,0.1896,2630.4,2630.3,3.80184769]
[1750059914201,0.1896,2630.4,2630.2,3.80192525]
[1750059914600,1.02409016,2630.4,2630.0,3.80220513]
[1750059915135,0.1896,2630.2,2630.0,3.80220513]
[1750059915725,0.1896,2630.2,2630.1,3.8021368]
[1750059917787,0.1896,2630.2,2629.9,3.80237947]
[1750059918215,0.1896,2630.2,2630.1,3.8021368]
[1750059918922,0.8054,2630.1,2629.8,3.80249103]
[1750059919129,0.995,2630.1,2629.8,3.80249103]
[1750059919328,0.995,2630.1,2629.9,3.80241026]
[1750059919558,0.995,2630.1,2630.0,3.80228136]
[1750059919859,0.995,2630.1,2629.9,3.80235396]
[1750059920213,0.995,2630.1,2630.0,3.80228136]
[1750059920951,0.995,2630.1,2629.8,3.80253777]
[1750059921159,0.995,2630.1,2629.9,3.80238946]
[1750059921450,0.995,2630.1,2630.0,3.80228136]
[1750059921951,0.55,2630.0,2629.9,3.8023499]
[1750059922157,0.55,2630.0,2629.8,3.80250014]
[1750059922453,0.1896,2629.9,2629.8,3.80250014]
[1750059926255,0.9825,2630.3,2629.8,3.99215287]
[1750059926461,0.9825,2630.3,2630.1,3.80205148]
[1750059926767,0.82379327,2630.2,2630.1,3.80205148]
[1750059927139,0.82379327,2630.2,2629.9,3.80238521]
[1750059927338,0.1896,2630.1,2629.9,3.80238521]
[1750059928863,0.1896,2630.1,2630.0,3.80228136]
[1750059931473,0.1896,2630.1,2629.6,0.1896]
[1750059931474,5.15794382,2630.1,2629.6,0.1896]
[1750059931658,6.7530282,2630.1,2629.8,3.80249815]
[1750059931969,5.15794382,2630.1,2629.9,3.80241256]
[1750059932864,5.15794382,2630.1,2629.8,3.80250444]
[1750059933063,4.96834382,2629.9,2629.8,3.80250444]
[1750059934469,0.1896,2629.8,2629.6,3.80281222]
[1750059934670,0.1896,2629.8,2629.3,1.9437]
[1750059934671,4.96834382,2629.7,2629.3,1.9437]
[1750059934846,4.96834382,2629.5,2629.4,3.80304821]
[1750059936078,4.96834382,2629.5,2629.3,3.80325212]
[1750059936489,5.91304382,2629.6,2629.4,3.803149]
[1750059936692,5.91304382,2629.6,2629.5,3.80300437]
[1750059936883,0.9447,2629.6,2629.5,3.80300437]
[1750059937247,0.1896,2629.6,2629.5,3.80300437]
[1750059937442,1.6980923,2629.8,2629.7,3.80271513]
[1750059937655,0.9772,2629.8,2629.7,3.80271513]
[1750059938395,0.1896,2629.8,2629.7,3.80271513]
[1750059939886,0.1896,2630.0,2629.9,3.80242594]
[1750059940411,0.1896,2630.0,2629.8,3.8024742]
[1750059940710,0.1896,2630.0,2629.9,3.80242594]
[1750059940921,0.1896,2630.0,2629.5,4.05870407]
[1750059941076,10.0,2629.9,2629.5,3.80291584]
[1750059941426,0.1896,2629.6,2629.5,3.80300437]
[1750059941575,0.1896,2629.6,2629.4,3.80308727]
[1750059942018,0.1896,2629.6,2629.5,3.80300437]
[1750059943882,0.1896,2629.6,2629.4,3.80307139]
[1750059944077,0.1896,2629.6,2629.3,3.8032465]
[1750059944303,0.1896,2629.6,2629.3,3.80329365]
[1750059944513,0.1896,2629.6,2629.2,3.80343496]
[1750059944812,0.1896,2629.6,2629.3,3.80329365]
[1750059945027,0.1896,2629.6,2629.4,3.80313344]
[1750059946998,0.1896,2629.6,2629.3,3.80328118]
[1750059947309,0.1896,2629.6,2629.5,3.80300437]
[1750059948018,0.1896,2629.6,2629.4,3.80307198]
[1750059948189,0.1896,2629.6,2629.2,3.80340656]
[1750059948397,0.1896,2629.6,2629.4,3.80313541]
[1750059949105,0.1896,2629.6,2629.2,3.8033956]
[1750059949290,0.1896,2629.6,2629.3,3.80317983]
[1750059949291,0.1896,2629.4,2629.3,3.80317983]
[1750059949499,0.7876,2629.4,2629.2,3.80337219]
[1750059949903,0.7876,2629.4,2628.8,11.89903294]
[1750059949904,0.1896,2629.2,2629.1,3.80358297]
[1750059952881,0.1896,2629.2,2629.0,3.80362339]
[1750059953085,0.1896,2629.1,2629.0,3.80362339]
[1750059953304,0.55,2629.0,2628.1,0.0861]
[1750059953545,10.0,2628.9,2628.6,3.80430537]
[1750059953701,1.6341,2628.8,2628.6,3.80430537]
[1750059954029,1.6341,2628.8,2628.5,3.80437733]
[1750059954342,10.91096101,2628.9,2628.6,3.80428752]
[1750059954844,10.0,2628.9,2628.5,3.80438777]
[1750059955043,10.0,2628.9,2628.6,3.80430409]
[1750059956533,10.0,2628.9,2628.5,3.80439279]
[1750059956734,10.75477067,2628.9,2628.5,3.80437586]
[1750059956951,0.7703,2628.7,2628.3,3.80466791]
[1750059957311,0.7703,2628.7,2628.4,3.80458486]
[1750059957506,0.35708554,2628.6,2628.4,3.80458486]
[1750059957811,0.7703,2628.7,2628.4,3.80458486]
[1750059958142,1.97780707,2628.7,2628.5,3.80444535]
[1750059958341,0.35708336,2628.6,2628.5,3.80444535]
[1750059958542,1.97780707,2628.7,2628.4,3.80451031]
[1750059958747,2.35522807,2628.7,2628.5,3.80444808]
[1750059959043,0.55,2628.8,2628.5,3.80444808]
[1750059959335,0.55,2628.8,2628.6,3.80416508]
[1750059959942,0.55,2628.8,2628.1,0.0861]
[1750059960143,0.35708244,2628.7,2628.1,0.0861]
[1750059960329,0.55,2628.8,2628.4,3.80445885]
[1750059960511,1.39738707,2628.8,2628.4,3.80445885]
[1750059960924,0.90708477,2628.7,2628.6,3.80430587]
[1750059961227,0.90707175,2628.7,2628.6,3.80430587]
[1750059961734,0.55,2628.7,2628.6,3.80430587]
[1750059961935,0.55,2628.8,2628.7,3.80411265]
[1750059962351,10.8281,2628.9,2628.7,3.80411265]
[1750059962549,0.3570643,2628.8,2628.6,3.8042328]
[1750059962734,10.8281,2628.9,2628.5,3.80437737]
[1750059962929,0.35706689,2628.8,2628.5,3.80437737]
[1750059963225,0.35707885,2628.7,2628.5,3.804363]
[1750059963430,0.1896,2628.7,2628.5,3.804363]
[1750059964059,0.1896,2628.7,2628.6,3.80430647]
[1750059965262,0.1896,2628.7,2628.5,3.80439566]
[1750059965471,0.799,2628.4,2626.8,0.0661]
[1750059965673,0.55,2628.0,2626.8,0.0661]
[1750059965827,0.55,2627.8,2627.2,0.0661]
[1750059966027,10.55,2627.8,2627.6,3.80567381]
[1750059966356,10.0,2627.8,2627.6,3.80567381]
[1750059966553,0.55,2628.0,2627.5,3.80583419]
[1750059966754,2.86788928,2628.0,2627.5,3.8058982]
[1750059966954,4.97749272,2627.8,2627.5,3.8058982]
[1750059967268,4.97749272,2627.6,2627.4,3.80599342]
[1750059967479,10.0,2627.9,2627.5,3.80589914]
[1750059967629,4.97749272,2627.8,2627.5,3.80589914]
[1750059968283,4.97749272,2627.8,2627.6,3.80567795]
[1750059968494,4.97749272,2627.8,2627.2,0.0661]
[1750059968495,4.97749272,2627.8,2627.3,3.80618886]
[1750059968787,4.97749272,2627.8,2627.5,3.80582559]
[1750059968992,10.0,2627.9,2627.5,3.80582559]
[1750059969192,12.73584294,2627.9,2627.5,3.80582559]
[1750059970988,12.73584294,2627.9,2627.4,3.80599265]
[1750059971173,12.73584294,2627.9,2627.5,3.80586458]
[1750059972288,0.8141,2628.4,2627.6,0.03805747]
[1750059972487,0.8141,2628.4,2627.8,3.871527]
[1750059972692,0.55,2628.3,2628.0,3.80510301]
[1750059972904,0.55,2628.3,2627.9,3.80526593]
[1750059973202,12.40843913,2628.3,2627.9,3.80526593]
[1750059973423,7.3515401,2628.0,2627.7,3.8055389]
[1750059973762,7.3515401,2628.0,2627.5,0.0661]
[1750059974122,7.3515401,2628.0,2627.8,3.80544877]
[1750059975082,7.3515401,2628.0,2627.5,0.0661]
[1750059975413,0.1896,2628.1,2627.9,3.80530001]
[1750059975569,0.1896,2628.1,2628.0,3.80517503]